[Event "Early-Titled-Tuesday-Blitz-January-30-2024"]
[Site "Chess.com"]
[Date "2024.01.30"]
[Round "3"]
[White "Cayse"]
[Black "OneTrickPony_82"]
[Result "1-0"]
[WhiteElo "2849"]
[BlackElo "2536"]
[TimeControl "180+1"]
[EndTime "8:30:39 PST"]
[Termination "Cayse won on time"]

1. e4 {[%clk 0:03:00.9]} 1... e5 {[%clk 0:02:59.8]} 2. Nf3 {[%clk 0:03:00.2]}
2... Nc6 {[%clk 0:03:00.4]} 3. Nc3 {[%clk 0:03:00.5]} 3... Nf6 {[%clk
0:02:59.9]} 4. a4 {[%clk 0:03:01.1]} 4... d5 {[%clk 0:02:57.6]} 5. exd5 {[%clk
0:03:00.9]} 5... Nxd5 {[%clk 0:02:57.8]} 6. Bb5 {[%clk 0:03:00.9]} 6... Nxc3
{[%clk 0:02:52.4]} 7. bxc3 {[%clk 0:03:01.8]} 7... Bd6 {[%clk 0:02:52.1]} 8. O-O
{[%clk 0:02:59.9]} 8... O-O {[%clk 0:02:49.9]} 9. d4 {[%clk 0:03:00.4]} 9...
exd4 {[%clk 0:02:36.2]} 10. cxd4 {[%clk 0:03:01.3]} 10... h6 {[%clk 0:02:24.5]}
11. c3 {[%clk 0:02:55.5]} 11... Qf6 {[%clk 0:02:23.8]} 12. a5 {[%clk 0:02:55.2]}
12... a6 {[%clk 0:02:12.9]} 13. Bd3 {[%clk 0:02:54.7]} 13... Bg4 {[%clk
0:02:08.9]} 14. Bb1 {[%clk 0:01:34.7]} 14... Bf5 {[%clk 0:01:40.3]} 15. Be3
{[%clk 0:01:32.1]} 15... Rfe8 {[%clk 0:01:37.4]} 16. Bxf5 {[%clk 0:01:30.3]}
16... Qxf5 {[%clk 0:01:37.4]} 17. Qb1 {[%clk 0:01:30.9]} 17... Qd5 {[%clk
0:01:16.4]} 18. Qa2 {[%clk 0:01:29.8]} 18... Qh5 {[%clk 0:01:12.5]} 19. Rfb1
{[%clk 0:01:28.3]} 19... Rab8 {[%clk 0:01:05.4]} 20. h3 {[%clk 0:01:26.6]} 20...
Ne7 {[%clk 0:00:59.4]} 21. c4 {[%clk 0:01:08.3]} 21... c6 {[%clk 0:00:55.8]} 22.
Rb3 {[%clk 0:01:04.4]} 22... Nf5 {[%clk 0:00:51.1]} 23. Rab1 {[%clk 0:01:04]}
23... Nxe3 {[%clk 0:00:48.7]} 24. fxe3 {[%clk 0:01:04.9]} 24... Re7 {[%clk
0:00:41.5]} 25. Kf1 {[%clk 0:00:36.7]} 25... Rbe8 {[%clk 0:00:37]} 26. c5 {[%clk
0:00:36.5]} 26... Bg3 {[%clk 0:00:30.8]} 27. Qa3 {[%clk 0:00:19.5]} 27... Qd5
{[%clk 0:00:24.5]} 28. Rc3 {[%clk 0:00:16.5]} 28... Re6 {[%clk 0:00:19.7]} 29.
Qb3 {[%clk 0:00:14.5]} 29... Qh5 {[%clk 0:00:15.8]} 30. Qxb7 {[%clk 0:00:11.6]}
30... Rf6 {[%clk 0:00:15.1]} 31. Ke2 {[%clk 0:00:08.9]} 31... Bf4 {[%clk
0:00:07.2]} 32. Qxa6 {[%clk 0:00:07.6]} 32... Rfe6 {[%clk 0:00:05.1]} 33. Rbb3
{[%clk 0:00:07.1]} 33... Qg6 {[%clk 0:00:03.6]} 34. Kf2 {[%clk 0:00:07.1]} 34...
Qg3+ {[%clk 0:00:03.4]} 35. Kf1 {[%clk 0:00:06.2]} 35... Rxe3 {[%clk 0:00:03.1]}
36. Rxe3 {[%clk 0:00:04.7]} 36... Bxe3 {[%clk 0:00:03.1]} 37. Qe2 {[%clk
0:00:04]} 37... Re6 {[%clk 0:00:02.7]} 38. Rxe3 {[%clk 0:00:03.7]} 1-0

[Event "Early-Titled-Tuesday-Blitz-January-30-2024"]
[Site "Chess.com"]
[Date "2024.01.30"]
[Round "3"]
[White "UK_23"]
[Black "aghasiyevkamal"]
[Result "0-1"]
[WhiteElo "2395"]
[BlackElo "2594"]
[TimeControl "180+1"]
[EndTime "8:30:39 PST"]
[Termination "aghasiyevkamal won by resignation"]

1. e4 {[%clk 0:02:57.4]} 1... e5 {[%clk 0:02:57.6]} 2. Nf3 {[%clk 0:02:56.9]}
2... Nc6 {[%clk 0:02:56.9]} 3. d4 {[%clk 0:02:55.9]} 3... exd4 {[%clk
0:02:56.4]} 4. Nxd4 {[%clk 0:02:56.8]} 4... Bc5 {[%clk 0:02:54.3]} 5. Nxc6
{[%clk 0:02:49.2]} 5... Qf6 {[%clk 0:02:53.1]} 6. Qf3 {[%clk 0:02:47.6]} 6...
Qxf3 {[%clk 0:02:46.5]} 7. gxf3 {[%clk 0:02:46.7]} 7... bxc6 {[%clk 0:02:43]} 8.
Nc3 {[%clk 0:02:39.3]} 8... Ne7 {[%clk 0:02:22.7]} 9. Bf4 {[%clk 0:02:34.2]}
9... d6 {[%clk 0:02:19.7]} 10. Bg3 {[%clk 0:02:31.4]} 10... f5 {[%clk
0:02:15.4]} 11. O-O-O {[%clk 0:02:27]} 11... O-O {[%clk 0:02:13.4]} 12. Bc4+
{[%clk 0:02:22.1]} 12... Kh8 {[%clk 0:02:12.4]} 13. Na4 {[%clk 0:02:07.4]} 13...
Bb6 {[%clk 0:01:58.1]} 14. Nxb6 {[%clk 0:01:19.5]} 14... axb6 {[%clk 0:01:57.1]}
15. Bh4 {[%clk 0:01:17.2]} 15... Ng6 {[%clk 0:01:54]} 16. Bg5 {[%clk 0:01:17.3]}
16... b5 {[%clk 0:01:42.8]} 17. Bb3 {[%clk 0:01:16.9]} 17... f4 {[%clk
0:01:17.8]} 18. h4 {[%clk 0:01:13.6]} 18... Ne5 {[%clk 0:01:11.5]} 19. h5 {[%clk
0:01:03.2]} 19... h6 {[%clk 0:01:07.7]} 20. Be7 {[%clk 0:00:48.1]} 20... Re8
{[%clk 0:01:06.3]} 21. Bh4 {[%clk 0:00:44.5]} 21... Nxf3 {[%clk 0:00:59.4]} 22.
a3 {[%clk 0:00:40.9]} 22... Nxh4 {[%clk 0:00:47.1]} 23. Rxh4 {[%clk 0:00:40.4]}
23... Rxe4 {[%clk 0:00:47.3]} 24. f3 {[%clk 0:00:40]} 24... Re8 {[%clk 0:00:41]}
25. Rxf4 {[%clk 0:00:39.8]} 25... d5 {[%clk 0:00:41.3]} 26. c3 {[%clk
0:00:38.7]} 26... Be6 {[%clk 0:00:38.7]} 27. Bc2 {[%clk 0:00:37.8]} 27... Rf8
{[%clk 0:00:38.9]} 28. Rdd4 {[%clk 0:00:36.1]} 28... c5 {[%clk 0:00:29.2]} 29.
Rxf8+ {[%clk 0:00:28.1]} 29... Rxf8 {[%clk 0:00:29.2]} 30. Rd1 {[%clk
0:00:28.5]} 30... Rxf3 {[%clk 0:00:26.3]} 31. Re1 {[%clk 0:00:29.2]} 31... Rf6
{[%clk 0:00:25.9]} 32. Bg6 {[%clk 0:00:27.5]} 32... Kg8 {[%clk 0:00:25.6]} 33.
b3 {[%clk 0:00:25.8]} 33... Kf8 {[%clk 0:00:25.5]} 34. a4 {[%clk 0:00:25.6]}
34... bxa4 {[%clk 0:00:24.1]} 35. bxa4 {[%clk 0:00:26.5]} 35... Bf7 {[%clk
0:00:18.4]} 36. Bc2 {[%clk 0:00:21.2]} 36... d4 {[%clk 0:00:12.8]} 37. Re5
{[%clk 0:00:17.5]} 37... Rf1+ {[%clk 0:00:11.6]} 38. Kd2 {[%clk 0:00:15.8]}
38... Rf2+ {[%clk 0:00:11.5]} 39. Kc1 {[%clk 0:00:15.7]} 39... dxc3 {[%clk
0:00:11.3]} 40. Rxc5 {[%clk 0:00:15.2]} 40... Rf1+ {[%clk 0:00:11.8]} 41. Bd1
{[%clk 0:00:15.7]} 41... Bb3 {[%clk 0:00:12.2]} 42. Rxc3 {[%clk 0:00:13]} 42...
Rxd1+ {[%clk 0:00:12.1]} 43. Kb2 {[%clk 0:00:13.2]} 43... Bxa4 {[%clk
0:00:12.5]} 44. Rxc7 {[%clk 0:00:13.4]} 44... Be8 {[%clk 0:00:11.9]} 45. Rc5
{[%clk 0:00:13.1]} 45... Rh1 {[%clk 0:00:11.3]} 0-1

[Event "Early-Titled-Tuesday-Blitz-January-30-2024"]
[Site "Chess.com"]
[Date "2024.01.30"]
[Round "3"]
[White "Tunahan_Makaraci"]
[Black "GMT4114"]
[Result "1-0"]
[WhiteElo "2551"]
[BlackElo "1938"]
[TimeControl "180+1"]
[EndTime "8:30:39 PST"]
[Termination "Tunahan_Makaraci won on time"]

1. e4 {[%clk 0:02:59.5]} 1... e6 {[%clk 0:03:00.1]} 2. d4 {[%clk 0:02:58.1]}
2... d5 {[%clk 0:02:55.3]} 3. Nc3 {[%clk 0:02:57.2]} 3... Bb4 {[%clk 0:02:54.7]}
4. Ne2 {[%clk 0:02:55.6]} 4... Nf6 {[%clk 0:02:52.9]} 5. e5 {[%clk 0:02:53.1]}
5... Nfd7 {[%clk 0:02:52.4]} 6. a3 {[%clk 0:02:53]} 6... Be7 {[%clk 0:02:52.4]}
7. f4 {[%clk 0:02:50.2]} 7... c5 {[%clk 0:02:50.8]} 8. Be3 {[%clk 0:02:50.1]}
8... Nc6 {[%clk 0:02:49.1]} 9. g3 {[%clk 0:02:49.8]} 9... Qb6 {[%clk 0:02:18.2]}
10. Na4 {[%clk 0:02:28.7]} 10... Qa5+ {[%clk 0:02:18.3]} 11. c3 {[%clk
0:02:28.8]} 11... cxd4 {[%clk 0:02:03.2]} 12. b4 {[%clk 0:02:26.1]} 12... Qc7
{[%clk 0:01:24.4]} 13. cxd4 {[%clk 0:02:25.1]} 13... b5 {[%clk 0:01:15.9]} 14.
Nc5 {[%clk 0:02:22.9]} 14... Nb6 {[%clk 0:01:15.4]} 15. Nc3 {[%clk 0:02:19.1]}
15... a6 {[%clk 0:01:14.4]} 16. Kf2 {[%clk 0:01:50.7]} 16... g6 {[%clk
0:01:13.8]} 17. Be2 {[%clk 0:01:45.3]} 17... h5 {[%clk 0:01:12.3]} 18. h3 {[%clk
0:01:44]} 18... Bb7 {[%clk 0:01:06.2]} 19. Rc1 {[%clk 0:01:42.7]} 19... Rd8
{[%clk 0:00:59.5]} 20. Nxb5 {[%clk 0:01:30.9]} 20... axb5 {[%clk 0:00:58.1]} 21.
Bxb5 {[%clk 0:01:31.8]} 21... O-O {[%clk 0:00:57.9]} 22. Nxb7 {[%clk 0:01:30.9]}
22... Qxb7 {[%clk 0:00:58.3]} 23. Bxc6 {[%clk 0:01:30.4]} 23... Qa6 {[%clk
0:00:55.7]} 24. b5 {[%clk 0:00:49.7]} 24... Qxa3 {[%clk 0:00:54.6]} 25. Ra1
{[%clk 0:00:49.7]} 25... Qb2+ {[%clk 0:00:52.6]} 26. Qe2 {[%clk 0:00:49.4]}
26... Qxe2+ {[%clk 0:00:34.3]} 27. Kxe2 {[%clk 0:00:49]} 27... Nc4 {[%clk
0:00:35.2]} 28. Rhb1 {[%clk 0:00:45.7]} 28... Rb8 {[%clk 0:00:34.4]} 29. Ra7
{[%clk 0:00:43.3]} 29... Ba3 {[%clk 0:00:29.2]} 30. Bc1 {[%clk 0:00:37.6]} 30...
Bxc1 {[%clk 0:00:14.8]} 31. Rxc1 {[%clk 0:00:38.5]} 31... Rfc8 {[%clk
0:00:15.3]} 32. Rxc4 {[%clk 0:00:33.1]} 32... dxc4 {[%clk 0:00:14.8]} 33. Kd2
{[%clk 0:00:33.4]} 33... Rxc6 {[%clk 0:00:07.3]} 34. bxc6 {[%clk 0:00:33.3]}
34... Rc8 {[%clk 0:00:05.9]} 35. c7 {[%clk 0:00:33.2]} 35... Kf8 {[%clk
0:00:04.2]} 36. Kc3 {[%clk 0:00:33.6]} 36... Ke7 {[%clk 0:00:04.6]} 37. Kxc4
{[%clk 0:00:34.2]} 37... Kd7 {[%clk 0:00:05]} 38. Kc5 {[%clk 0:00:33.9]} 38...
Rxc7+ {[%clk 0:00:05.4]} 39. Rxc7+ {[%clk 0:00:33.8]} 39... Kxc7 {[%clk
0:00:06.3]} 40. d5 {[%clk 0:00:34.1]} 40... exd5 {[%clk 0:00:03.7]} 41. Kxd5
{[%clk 0:00:35]} 41... Kd7 {[%clk 0:00:04.5]} 42. g4 {[%clk 0:00:34.6]} 42...
Ke7 {[%clk 0:00:05.1]} 43. f5 {[%clk 0:00:29.1]} 43... hxg4 {[%clk 0:00:03.9]}
44. hxg4 {[%clk 0:00:30]} 44... gxf5 {[%clk 0:00:03.9]} 45. gxf5 {[%clk
0:00:30.2]} 45... Kd7 {[%clk 0:00:04.1]} 46. f6 {[%clk 0:00:28.3]} 1-0

[Event "Early-Titled-Tuesday-Blitz-January-30-2024"]
[Site "Chess.com"]
[Date "2024.01.30"]
[Round "3"]
[White "KuzubovYuriy"]
[Black "sonicdravise"]
[Result "1-0"]
[WhiteElo "2885"]
[BlackElo "2617"]
[TimeControl "180+1"]
[EndTime "8:30:40 PST"]
[Termination "KuzubovYuriy won by resignation"]

1. d4 {[%clk 0:03:00.9]} 1... d5 {[%clk 0:03:00.1]} 2. c4 {[%clk 0:03:00.9]}
2... c6 {[%clk 0:03:00.6]} 3. Nf3 {[%clk 0:03:01.6]} 3... Nf6 {[%clk 0:02:59.9]}
4. Nc3 {[%clk 0:03:02.3]} 4... a6 {[%clk 0:02:59.7]} 5. e3 {[%clk 0:03:01]} 5...
Bf5 {[%clk 0:02:57.6]} 6. Nh4 {[%clk 0:02:57.2]} 6... Be4 {[%clk 0:02:54.7]} 7.
f3 {[%clk 0:02:56.4]} 7... Bg6 {[%clk 0:02:54]} 8. Qb3 {[%clk 0:02:53.5]} 8...
Ra7 {[%clk 0:02:50.4]} 9. Bd2 {[%clk 0:02:47.9]} 9... e6 {[%clk 0:02:47.3]} 10.
Nxg6 {[%clk 0:02:46.5]} 10... hxg6 {[%clk 0:02:46.8]} 11. O-O-O {[%clk
0:02:45.7]} 11... Nbd7 {[%clk 0:02:30.1]} 12. Kb1 {[%clk 0:02:44.3]} 12... Qb6
{[%clk 0:02:19.5]} 13. Qc2 {[%clk 0:02:31.5]} 13... Bb4 {[%clk 0:02:11.9]} 14.
a3 {[%clk 0:02:19.9]} 14... Bxc3 {[%clk 0:02:07.9]} 15. Bxc3 {[%clk 0:02:19.4]}
15... Ra8 {[%clk 0:02:03.6]} 16. g4 {[%clk 0:02:15.6]} 16... Qc7 {[%clk
0:01:53.5]} 17. Bd3 {[%clk 0:02:00.9]} 17... dxc4 {[%clk 0:01:35.2]} 18. Bxc4
{[%clk 0:02:00.6]} 18... Nd5 {[%clk 0:01:35.5]} 19. Bxd5 {[%clk 0:01:30.1]}
19... cxd5 {[%clk 0:01:25.9]} 20. Rc1 {[%clk 0:01:30.5]} 20... Rc8 {[%clk
0:01:23.4]} 21. Qe2 {[%clk 0:01:26.6]} 21... Nb8 {[%clk 0:00:44.5]} 22. h4
{[%clk 0:01:23.4]} 22... Nc6 {[%clk 0:00:42.1]} 23. h5 {[%clk 0:01:14.1]} 23...
gxh5 {[%clk 0:00:41.2]} 24. gxh5 {[%clk 0:01:15]} 24... f6 {[%clk 0:00:24.8]}
25. e4 {[%clk 0:01:12.1]} 25... Qe7 {[%clk 0:00:21.4]} 26. Rcg1 {[%clk 0:01:09]}
26... Rh7 {[%clk 0:00:18.7]} 27. Qd3 {[%clk 0:01:04.9]} 27... dxe4 {[%clk
0:00:11.9]} 28. fxe4 {[%clk 0:01:04.1]} 28... Rd8 {[%clk 0:00:07]} 29. d5 {[%clk
0:01:04.3]} 29... Ne5 {[%clk 0:00:05.1]} 30. Bxe5 {[%clk 0:00:50.6]} 30... fxe5
{[%clk 0:00:06]} 31. Rg6 {[%clk 0:00:50]} 31... exd5 {[%clk 0:00:05.4]} 32. exd5
{[%clk 0:00:48.5]} 32... Rh6 {[%clk 0:00:06]} 33. Re1 {[%clk 0:00:41.8]} 33...
Rxg6 {[%clk 0:00:05.5]} 34. Qxg6+ {[%clk 0:00:41.7]} 34... Kd7 {[%clk
0:00:05.2]} 35. Rc1 {[%clk 0:00:39]} 35... Qf6 {[%clk 0:00:04.3]} 36. Qg4+
{[%clk 0:00:36.5]} 36... Kd6 {[%clk 0:00:04.2]} 37. Ka1 {[%clk 0:00:31.9]} 37...
a5 {[%clk 0:00:03.1]} 38. Qc4 {[%clk 0:00:27.5]} 38... Kd7 {[%clk 0:00:02.4]}
39. Qb5+ {[%clk 0:00:27.1]} 39... Ke7 {[%clk 0:00:02.7]} 40. Qxb7+ {[%clk
0:00:25.6]} 40... Rd7 {[%clk 0:00:03]} 41. Qb5 {[%clk 0:00:24.7]} 41... Qd6
{[%clk 0:00:02.1]} 42. Re1 {[%clk 0:00:21.4]} 42... Qxd5 {[%clk 0:00:02]} 43.
Rxe5+ {[%clk 0:00:21.1]} 43... Kf6 {[%clk 0:00:02.1]} 1-0

[Event "Early-Titled-Tuesday-Blitz-January-30-2024"]
[Site "Chess.com"]
[Date "2024.01.30"]
[Round "3"]
[White "GAO"]
[Black "PetrolulSah"]
[Result "1-0"]
[WhiteElo "2413"]
[BlackElo "2185"]
[TimeControl "180+1"]
[EndTime "8:30:43 PST"]
[Termination "GAO won by resignation"]

1. e4 {[%clk 0:02:56.5]} 1... Nf6 {[%clk 0:02:57.4]} 2. e5 {[%clk 0:02:51.4]}
2... Nd5 {[%clk 0:02:56]} 3. Nc3 {[%clk 0:02:50.8]} 3... Nxc3 {[%clk 0:02:53.4]}
4. dxc3 {[%clk 0:02:51.4]} 4... d6 {[%clk 0:02:53.1]} 5. Nf3 {[%clk 0:02:51.5]}
5... g6 {[%clk 0:02:51.3]} 6. Bc4 {[%clk 0:02:48.9]} 6... Bg7 {[%clk 0:02:47.8]}
7. O-O {[%clk 0:02:49]} 7... O-O {[%clk 0:02:47.2]} 8. Bf4 {[%clk 0:02:44.5]}
8... Nc6 {[%clk 0:02:45.7]} 9. Re1 {[%clk 0:02:43.7]} 9... Bg4 {[%clk 0:02:45]}
10. exd6 {[%clk 0:02:41]} 10... exd6 {[%clk 0:02:40.5]} 11. h3 {[%clk
0:02:41.3]} 11... Bd7 {[%clk 0:02:36.5]} 12. Nd4 {[%clk 0:02:28.6]} 12... Ne5
{[%clk 0:02:33.6]} 13. Bf1 {[%clk 0:02:26.4]} 13... a6 {[%clk 0:02:29.3]} 14. a4
{[%clk 0:02:22.4]} 14... c5 {[%clk 0:02:28.9]} 15. Nf3 {[%clk 0:02:20.7]} 15...
Nxf3+ {[%clk 0:02:24.5]} 16. Qxf3 {[%clk 0:02:21.6]} 16... Bc6 {[%clk
0:02:23.9]} 17. Qd3 {[%clk 0:02:20.1]} 17... d5 {[%clk 0:02:22.7]} 18. g3 {[%clk
0:02:14.5]} 18... b5 {[%clk 0:02:17.2]} 19. axb5 {[%clk 0:02:12.9]} 19... axb5
{[%clk 0:02:16.9]} 20. Rxa8 {[%clk 0:02:13.8]} 20... Qxa8 {[%clk 0:02:16.4]} 21.
Bd6 {[%clk 0:02:14.1]} 21... c4 {[%clk 0:02:08.8]} 22. Qd2 {[%clk 0:01:51.3]}
22... Re8 {[%clk 0:02:07.1]} 23. Bg2 {[%clk 0:01:48.6]} 23... Rxe1+ {[%clk
0:02:01.7]} 24. Qxe1 {[%clk 0:01:48.7]} 24... d4 {[%clk 0:01:48.1]} 25. Bxc6
{[%clk 0:01:32.1]} 25... Qxc6 {[%clk 0:01:47.7]} 26. Qe7 {[%clk 0:01:31.9]}
26... h5 {[%clk 0:01:40.2]} 27. cxd4 {[%clk 0:01:24.4]} 27... Bxd4 {[%clk
0:01:37.2]} 28. Qf8+ {[%clk 0:01:21.4]} 28... Kh7 {[%clk 0:01:33.5]} 29. Qxf7+
{[%clk 0:01:22.3]} 29... Kh8 {[%clk 0:01:26.5]} 30. Qxg6 {[%clk 0:01:15.5]}
30... Qf3 {[%clk 0:01:20.4]} 31. Qh6+ {[%clk 0:01:01.7]} 31... Kg8 {[%clk
0:01:18.9]} 32. Qg5+ {[%clk 0:00:59.4]} 32... Kh7 {[%clk 0:01:11.9]} 33. Qe7+
{[%clk 0:00:42.3]} 33... Kg8 {[%clk 0:01:08.7]} 34. Qg5+ {[%clk 0:00:36.4]}
34... Kh7 {[%clk 0:01:05.5]} 35. Qf4 {[%clk 0:00:37]} 35... Bxf2+ {[%clk
0:00:59.4]} 36. Kh2 {[%clk 0:00:20.5]} 36... Qxf4 {[%clk 0:00:50.1]} 37. Bxf4
{[%clk 0:00:19.7]} 37... Bd4 {[%clk 0:00:50]} 38. b3 {[%clk 0:00:20.2]} 38...
Kg6 {[%clk 0:00:46.9]} 39. Kg2 {[%clk 0:00:20.3]} 39... Kf5 {[%clk 0:00:46.7]}
40. Kf3 {[%clk 0:00:21]} 40... Bb2 {[%clk 0:00:45.2]} 41. g4+ {[%clk 0:00:21.3]}
41... Kg6 {[%clk 0:00:43.4]} 42. Ke4 {[%clk 0:00:21.4]} 42... Bg7 {[%clk
0:00:27.9]} 43. Kd5 {[%clk 0:00:20.1]} 43... cxb3 {[%clk 0:00:26.8]} 44. cxb3
{[%clk 0:00:20.6]} 44... Bf8 {[%clk 0:00:26.9]} 45. Kc6 {[%clk 0:00:20.1]} 45...
b4 {[%clk 0:00:27]} 46. Kb5 {[%clk 0:00:19.7]} 46... hxg4 {[%clk 0:00:25.4]} 47.
hxg4 {[%clk 0:00:19.5]} 47... Be7 {[%clk 0:00:25.2]} 48. Kc4 {[%clk 0:00:19.3]}
48... Bf8 {[%clk 0:00:24.6]} 49. Bd2 {[%clk 0:00:19.3]} 49... Bg7 {[%clk
0:00:19.5]} 50. Kxb4 {[%clk 0:00:17.4]} 50... Bd4 {[%clk 0:00:18.7]} 51. Kc4
{[%clk 0:00:16.8]} 1-0

[Event "Early-Titled-Tuesday-Blitz-January-30-2024"]
[Site "Chess.com"]
[Date "2024.01.30"]
[Round "3"]
[White "sofaceindisguise"]
[Black "BogdanDeac"]
[Result "0-1"]
[WhiteElo "2778"]
[BlackElo "3093"]
[TimeControl "180+1"]
[EndTime "8:30:44 PST"]
[Termination "BogdanDeac won by resignation"]

1. d4 {[%clk 0:02:59.5]} 1... Nf6 {[%clk 0:02:58]} 2. c4 {[%clk 0:03:00.1]} 2...
g6 {[%clk 0:02:58]} 3. Nc3 {[%clk 0:03:00.4]} 3... Bg7 {[%clk 0:02:58.2]} 4. e4
{[%clk 0:03:00.9]} 4... d6 {[%clk 0:02:58.6]} 5. Be2 {[%clk 0:03:00.8]} 5... O-O
{[%clk 0:02:58.1]} 6. Be3 {[%clk 0:03:01.5]} 6... a5 {[%clk 0:02:57.3]} 7. h4
{[%clk 0:03:00.6]} 7... h5 {[%clk 0:02:54.6]} 8. Nf3 {[%clk 0:02:59.5]} 8... Nc6
{[%clk 0:02:50.8]} 9. O-O {[%clk 0:02:58]} 9... Bg4 {[%clk 0:02:45.7]} 10. Rc1
{[%clk 0:02:39.7]} 10... Nd7 {[%clk 0:02:43.8]} 11. Ng5 {[%clk 0:02:32.9]} 11...
Nf6 {[%clk 0:02:22.7]} 12. f3 {[%clk 0:02:30.1]} 12... Bd7 {[%clk 0:02:19.5]}
13. d5 {[%clk 0:02:25]} 13... Ne5 {[%clk 0:02:08.7]} 14. c5 {[%clk 0:02:24.4]}
14... c6 {[%clk 0:02:02.5]} 15. cxd6 {[%clk 0:02:23.7]} 15... exd6 {[%clk
0:02:01.5]} 16. dxc6 {[%clk 0:02:23.4]} 16... Bxc6 {[%clk 0:01:59.8]} 17. Qd4
{[%clk 0:02:17]} 17... Qe7 {[%clk 0:01:22.4]} 18. Rfd1 {[%clk 0:02:14.3]} 18...
Rfd8 {[%clk 0:01:19.9]} 19. Qb6 {[%clk 0:01:53.4]} 19... d5 {[%clk 0:00:21.2]}
20. exd5 {[%clk 0:01:41.2]} 20... Ned7 {[%clk 0:00:15.3]} 21. Qd4 {[%clk
0:00:52.2]} 21... Nxd5 {[%clk 0:00:13.9]} 22. Nxd5 {[%clk 0:00:51]} 22... Bxd5
{[%clk 0:00:14]} 23. Qd2 {[%clk 0:00:33.4]} 23... Nf6 {[%clk 0:00:09.8]} 24. Bc5
{[%clk 0:00:32.8]} 24... Qe8 {[%clk 0:00:09.8]} 25. Qc2 {[%clk 0:00:16.2]} 25...
Rac8 {[%clk 0:00:09.3]} 26. Qd2 {[%clk 0:00:04.8]} 26... Bxa2 {[%clk 0:00:09]}
27. Qe1 {[%clk 0:00:04.1]} 27... Rxd1 {[%clk 0:00:08.8]} 28. Qxd1 {[%clk
0:00:01.7]} 28... Rd8 {[%clk 0:00:08.9]} 29. Qe1 {[%clk 0:00:01.8]} 29... Bd5
{[%clk 0:00:08.9]} 30. Bf2 {[%clk 0:00:02.4]} 30... a4 {[%clk 0:00:08.7]} 31.
Bf1 {[%clk 0:00:03]} 31... Qxe1 {[%clk 0:00:08.1]} 32. Rxe1 {[%clk 0:00:03.9]}
32... Nd7 {[%clk 0:00:07.8]} 33. Re7 {[%clk 0:00:04.3]} 33... Bxb2 {[%clk
0:00:07.1]} 34. Bb5 {[%clk 0:00:04.8]} 34... a3 {[%clk 0:00:07.2]} 35. Bxd7
{[%clk 0:00:03.9]} 35... a2 {[%clk 0:00:07]} 36. Be8 {[%clk 0:00:01.5]} 36...
a1=Q+ {[%clk 0:00:06.9]} 37. Kh2 {[%clk 0:00:02.2]} 37... Bf6 {[%clk 0:00:07.2]}
38. Bxf7+ {[%clk 0:00:02.1]} 38... Bxf7 {[%clk 0:00:07.5]} 39. Nxf7 {[%clk
0:00:02.7]} 39... Bxe7 {[%clk 0:00:07.5]} 40. Nxd8 {[%clk 0:00:03.6]} 40... Bxd8
{[%clk 0:00:07.6]} 41. Bg3 {[%clk 0:00:04.5]} 0-1

[Event "Early-Titled-Tuesday-Blitz-January-30-2024"]
[Site "Chess.com"]
[Date "2024.01.30"]
[Round "3"]
[White "tomesao"]
[Black "Aslanov_Umid"]
[Result "0-1"]
[WhiteElo "2478"]
[BlackElo "2664"]
[TimeControl "180+1"]
[EndTime "8:30:44 PST"]
[Termination "Aslanov_Umid won on time"]

1. Nf3 {[%clk 0:03:00.9]} 1... d5 {[%clk 0:03:00.2]} 2. c4 {[%clk 0:02:59.4]}
2... e6 {[%clk 0:02:59.9]} 3. g3 {[%clk 0:02:57.2]} 3... Nf6 {[%clk 0:03:00.3]}
4. Bg2 {[%clk 0:02:56.9]} 4... dxc4 {[%clk 0:03:01]} 5. Qa4+ {[%clk 0:02:56]}
5... Bd7 {[%clk 0:03:01.4]} 6. Qxc4 {[%clk 0:02:56.5]} 6... c5 {[%clk
0:03:02.1]} 7. O-O {[%clk 0:02:53.2]} 7... Bc6 {[%clk 0:02:47.8]} 8. d3 {[%clk
0:02:45.4]} 8... Nbd7 {[%clk 0:02:48.2]} 9. Qc2 {[%clk 0:02:36.9]} 9... Be7
{[%clk 0:02:41.7]} 10. Nc3 {[%clk 0:02:36.3]} 10... O-O {[%clk 0:02:41.3]} 11.
Bf4 {[%clk 0:02:31.2]} 11... b5 {[%clk 0:02:37]} 12. a4 {[%clk 0:02:21.3]} 12...
a6 {[%clk 0:02:33.9]} 13. Nd2 {[%clk 0:02:07.2]} 13... Bxg2 {[%clk 0:02:32.3]}
14. Kxg2 {[%clk 0:02:07.3]} 14... Qb6 {[%clk 0:02:26.5]} 15. Nde4 {[%clk
0:01:58.8]} 15... Rfc8 {[%clk 0:02:12.1]} 16. Rfc1 {[%clk 0:01:50.8]} 16... Nxe4
{[%clk 0:01:53.8]} 17. Nxe4 {[%clk 0:01:49.9]} 17... Nf6 {[%clk 0:01:54.1]} 18.
Nxf6+ {[%clk 0:01:42.3]} 18... Bxf6 {[%clk 0:01:55]} 19. Be3 {[%clk 0:01:39.8]}
19... Qb7+ {[%clk 0:01:52.3]} 20. Kg1 {[%clk 0:01:37.2]} 20... c4 {[%clk
0:01:52.5]} 21. axb5 {[%clk 0:01:31.2]} 21... axb5 {[%clk 0:01:18.5]} 22. Rxa8
{[%clk 0:01:28.5]} 22... Qxa8 {[%clk 0:01:19.4]} 23. dxc4 {[%clk 0:01:11]} 23...
bxc4 {[%clk 0:01:19.4]} 24. b3 {[%clk 0:01:10.2]} 24... c3 {[%clk 0:01:18.2]}
25. b4 {[%clk 0:01:09.5]} 25... Qd5 {[%clk 0:01:01.4]} 26. Rb1 {[%clk
0:01:07.6]} 26... Rb8 {[%clk 0:00:52.5]} 27. Rb3 {[%clk 0:01:00]} 27... Qc4
{[%clk 0:00:48]} 28. Bc5 {[%clk 0:00:32.4]} 28... Rd8 {[%clk 0:00:27]} 29. Be3
{[%clk 0:00:28.2]} 29... Rb8 {[%clk 0:00:23.3]} 30. Bc5 {[%clk 0:00:27.8]} 30...
Ra8 {[%clk 0:00:23.5]} 31. Be3 {[%clk 0:00:18.2]} 31... Ra1+ {[%clk 0:00:22.4]}
32. Kg2 {[%clk 0:00:16.8]} 32... Qd5+ {[%clk 0:00:20.7]} 33. f3 {[%clk
0:00:16.5]} 33... Qb5 {[%clk 0:00:09.3]} 34. Kf2 {[%clk 0:00:13]} 34... g6
{[%clk 0:00:08.5]} 35. Kg2 {[%clk 0:00:04.3]} 35... h5 {[%clk 0:00:08.9]} 36.
Kf2 {[%clk 0:00:04.2]} 36... Kg7 {[%clk 0:00:08.7]} 37. Kg2 {[%clk 0:00:04.3]}
37... Qa4 {[%clk 0:00:07.8]} 38. Kf2 {[%clk 0:00:02.8]} 38... Ra2 {[%clk
0:00:08.2]} 39. Qb1 {[%clk 0:00:02.1]} 39... c2 {[%clk 0:00:07]} 40. Qc1 {[%clk
0:00:01.7]} 40... Qxb3 {[%clk 0:00:07.1]} 0-1